fUSD/lending_fUSD_20240423
["ID","MTS","AMOUNT","RATE_DAILY","PERIOD"]
[323327425,1713899432162,-155.0,0.00011897,2]
[323327426,1713899432172,-710.01341004,0.00011897,2]
[323327427,1713899432182,-787.08726309,0.00011897,2]
[323327428,1713899432191,-9721.15543186,0.00011897,2]
[323327429,1713899432200,-500.0,0.00011898,2]
[323327430,1713899432209,-524.53,0.00011898,2]
[323327431,1713899432219,-500.0,0.00011898,2]
[323327432,1713899432230,-1279.11,0.00011898,2]
[323327433,1713899432239,-500.0,0.00011898,2]
[323327434,1713899432249,-332.18363531,0.00011898,2]
[323327435,1713899432259,-443.03541185,0.00011898,2]
[323327436,1713899432268,-201.58196262,0.00011898,2]
[323327437,1713899432278,-500.0,0.00011898,2]
[323327438,1713899432287,-500.0,0.00011898,2]
[323327439,1713899432297,-500.0,0.00011898,2]
[323327440,1713899432307,-1018.31,0.00011898,2]
[323327441,1713899432316,-500.0,0.00011898,2]
[323327442,1713899432327,-500.0,0.00011898,2]
[323327443,1713899432336,-500.0,0.00011898,2]
[323327444,1713899432345,-160.71221274,0.00011898,2]
[323327445,1713899432355,-500.0,0.00011898,2]
[323327446,1713899432365,-880.92,0.00011898,2]
[323327447,1713899432374,-1376.54,0.00011898,2]
[323327449,1713899432384,-500.0,0.00011898,2]
[323327450,1713899432394,-584.08,0.00011898,2]
[323327451,1713899432404,-500.0,0.00011898,2]
[323327452,1713899432413,-500.0,0.00011898,2]
[323327454,1713899432422,-500.0,0.00011898,2]
[323327456,1713899432431,-500.0,0.00011898,2]
[323327458,1713899432440,-500.0,0.00011898,2]
[323327460,1713899432449,-500.0,0.00011898,2]
[323327462,1713899432459,-500.0,0.00011898,2]
[323327464,1713899432467,-500.0,0.00011898,2]
[323327466,1713899432476,-500.0,0.00011898,2]
[323327468,1713899432486,-500.0,0.00011898,2]
[323327471,1713899432495,-500.0,0.00011898,2]
[323327474,1713899432504,-500.0,0.00011898,2]
[323327476,1713899432515,-635.7,0.00011898,2]
[323327478,1713899432527,-500.0,0.00011898,2]
[323327480,1713899432537,-500.0,0.00011898,2]
[323327482,1713899432546,-500.0,0.00011898,2]
[323327483,1713899432555,-1445.05,0.00011898,2]
[323327485,1713899432565,-500.0,0.00011898,2]
[323327487,1713899432575,-772.86,0.00011898,2]
[323327489,1713899432584,-532.07,0.00011898,2]
[323327491,1713899432593,-500.0,0.00011898,2]
[323327493,1713899432602,-500.0,0.00011898,2]
[323327494,1713899432611,-557.45,0.00011898,2]
[323327495,1713899432621,-500.0,0.00011898,2]
[323327496,1713899432631,-500.0,0.00011898,2]
[323327497,1713899432640,-962.03,0.00011898,2]
[323327498,1713899432650,-500.0,0.00011898,2]
[323327499,1713899432659,-500.0,0.00011898,2]
[323327500,1713899432669,-500.0,0.00011898,2]
[323327501,1713899432678,-577.6,0.00011898,2]
[323327502,1713899432687,-500.0,0.00011898,2]
[323327503,1713899432696,-500.0,0.00011898,2]
[323327504,1713899432705,-500.0,0.00011898,2]
[323327505,1713899432715,-1618.01,0.00011898,2]
[323327506,1713899432724,-500.0,0.00011898,2]
[323327507,1713899432733,-932.59,0.00011898,2]
[323327508,1713899432742,-500.0,0.00011898,2]
[323327509,1713899432752,-500.0,0.00011898,2]
[323327510,1713899432761,-500.0,0.00011898,2]
[323327511,1713899432770,-500.0,0.00011898,2]
[323327512,1713899432780,-500.0,0.00011898,2]
[323327513,1713899432789,-500.0,0.00011898,2]
[323327514,1713899432799,-512.67,0.00011898,2]
[323327515,1713899432808,-500.0,0.00011898,2]
[323327516,1713899432819,-500.0,0.00011898,2]
[323327517,1713899432829,-500.0,0.00011898,2]
[323327518,1713899432838,-500.0,0.00011898,2]
[323327519,1713899432848,-3752.5,0.00011898,2]
[323327520,1713899432857,-500.0,0.00011898,2]
[323327521,1713899432867,-500.0,0.00011898,2]
[323327522,1713899432879,-500.0,0.00011898,2]
[323327523,1713899432889,-500.0,0.00011898,2]
[323327524,1713899432898,-6036.15,0.00011898,2]
[323327525,1713899432907,-500.0,0.00011898,2]
[323327526,1713899432918,-500.0,0.00011898,2]
[323327527,1713899432927,-500.0,0.00011898,2]
[323327528,1713899432937,-500.0,0.00011898,2]
[323327529,1713899432946,-500.0,0.00011898,2]
[323327530,1713899432957,-500.0,0.00011898,2]
[323327531,1713899432967,-54869.68484759,0.00011899,2]
[323327532,1713899432984,-3179.42013197,0.00011899,2]
[323327533,1713899433002,-139536.892676,0.00011899,2]
[323327534,1713899433021,-474.09522642,0.00011899,2]
[323327535,1713899433032,-348179.0792021,0.00011899,2]
[323327536,1713899433042,-144517.73318846,0.000119,2]
[323327537,1713899433051,-499.99,0.000119,2]
[323327538,1713899433061,-2145.83008291,0.00012,2]
[323327539,1713899433072,-604.16991709,0.00012,2]
[323327540,1713899433083,-383.59,0.00012,2]
[323327541,1713899433092,-1070.14,0.00012078,2]
[323327542,1713899433102,-537.02739739,0.0001217,2]
[323327543,1713899433111,-500.0,0.00012172,2]
[323327544,1713899433121,-500.0,0.00012172,2]
[323327545,1713899433131,-524.53,0.00012172,2]
[323327546,1713899433140,-500.0,0.00012172,2]
[323327547,1713899433150,-1279.11,0.00012172,2]
[323327548,1713899433159,-500.0,0.00012172,2]
[323327549,1713899433169,-500.0,0.00012172,2]
[323327550,1713899433178,-500.0,0.00012172,2]
[323327551,1713899433188,-500.0,0.00012172,2]
[323327552,1713899433197,-1018.31,0.00012172,2]
[323327553,1713899433206,-500.0,0.00012172,2]
[323327554,1713899433216,-500.0,0.00012172,2]
[323327555,1713899433224,-500.0,0.00012172,2]
[323327556,1713899433234,-500.0,0.00012172,2]
[323327557,1713899433243,-880.92,0.00012172,2]
[323327558,1713899433254,-1376.54,0.00012172,2]
[323327559,1713899433263,-500.0,0.00012172,2]
[323327560,1713899433273,-584.08,0.00012172,2]
[323327561,1713899433282,-500.0,0.00012172,2]
[323327562,1713899433292,-500.0,0.00012172,2]
[323327563,1713899433301,-500.0,0.00012172,2]
[323327564,1713899433310,-500.0,0.00012172,2]
[323327565,1713899433319,-500.0,0.00012172,2]
[323327566,1713899433331,-500.0,0.00012172,2]
[323327567,1713899433340,-500.0,0.00012172,2]
[323327568,1713899433349,-500.0,0.00012172,2]
[323327569,1713899433359,-500.0,0.00012172,2]
[323327570,1713899433368,-500.0,0.00012172,2]
[323327571,1713899433377,-500.0,0.00012172,2]
[323327572,1713899433387,-500.0,0.00012172,2]
[323327573,1713899433396,-500.0,0.00012172,2]
[323327574,1713899433406,-500.0,0.00012172,2]
[323327575,1713899433415,-500.0,0.00012172,2]
[323327576,1713899433424,-1445.05,0.00012172,2]
[323327577,1713899433433,-500.0,0.00012172,2]
[323327578,1713899433443,-772.86,0.00012172,2]
[323327579,1713899433453,-532.07,0.00012172,2]
[323327580,1713899433463,-500.0,0.00012172,2]
[323327581,1713899433472,-500.0,0.00012172,2]
[323327582,1713899433481,-500.0,0.00012172,2]
[323327583,1713899433491,-365.26678423,0.00012172,2]
[323327584,1713899433500,-962.03,0.00012172,2]
[323327585,1713899433510,-206.23853212,0.00012172,2]
[323327586,1713899433519,-500.0,0.00012172,2]
[323327587,1713899433529,-500.0,0.00012172,2]
[323327588,1713899433539,-577.6,0.00012172,2]
[323327589,1713899433549,-500.0,0.00012172,2]
[323327590,1713899433557,-497.00798509,0.00012172,2]
[323327591,1713899433567,-500.0,0.00012172,2]
[323327592,1713899433578,-1618.01,0.00012172,2]
[323327593,1713899433588,-500.0,0.00012172,2]
[323327594,1713899433597,-932.59,0.00012172,2]
[323327595,1713899433608,-500.0,0.00012172,2]
[323327596,1713899433618,-500.0,0.00012172,2]
[323327597,1713899433629,-500.0,0.00012172,2]
[323327598,1713899433639,-500.0,0.00012172,2]
[323327599,1713899433648,-500.0,0.00012172,2]
[323327600,1713899433657,-500.0,0.00012172,2]
[323327601,1713899433666,-512.67,0.00012172,2]
[323327602,1713899433676,-500.0,0.00012172,2]
[323327603,1713899433686,-500.0,0.00012172,2]
[323327604,1713899433696,-500.0,0.00012172,2]
[323327605,1713899433705,-500.0,0.00012172,2]
[323327606,1713899433714,-3752.5,0.00012172,2]
[323327607,1713899433723,-500.0,0.00012172,2]
[323327608,1713899433732,-283.27954894,0.00012172,2]
[323327609,1713899433742,-500.0,0.00012172,2]
[323327610,1713899433751,-500.0,0.00012172,2]
[323327611,1713899433760,-4720.92535563,0.00012172,2]
[323327612,1713899433772,-1315.22464437,0.00012172,2]
[323327613,1713899433781,-500.0,0.00012172,2]
[323327614,1713899433789,-306.86266683,0.00012172,2]
[323327615,1713899433798,-500.0,0.00012172,2]
[323327616,1713899433807,-500.0,0.00012172,2]
[323327617,1713899433816,-500.0,0.00012172,2]
[323327618,1713899433825,-500.0,0.00012172,2]
[323327619,1713899433835,-28591.9027088,0.00012227,2]
[323327620,1713899433846,-14858.499992,0.00012227,2]
[323327621,1713899433877,-278.108558,0.00012227,2]
[323327622,1713899433888,-1440.00014,0.00012227,2]
[323327623,1713899434394,-606.90853724,0.00012227,2]
[323327624,1713899434414,-1393.02296755,0.00012227,2]
[323327625,1713899434442,-2769.30883899,0.00012227,2]
[323327626,1713899434456,-801.39287515,0.00012227,2]
[323327627,1713899434468,-496.701815,0.00012227,2]
[323327681,1713899438108,-356.967728,0.00011798,2]
[323327684,1713899438120,-2643.26011239,0.00011798,2]
[323327687,1713899438129,-500.0,0.00011898,2]
[323327691,1713899438139,-388.62,0.00012172,2]
[323327694,1713899438148,-6476.58858169,0.00012227,2]
[323327697,1713899438162,-5458.9516238,0.00012227,2]
[323327699,1713899438173,-2596.15539632,0.00012227,2]
[323327701,1713899438184,-736.13767374,0.00012227,2]
[323327703,1713899438220,-4006.7037361,0.00012227,2]
[323327704,1713899438232,-16715.76522484,0.00012227,2]
[323327705,1713899438244,-6165.85133078,0.00012227,2]
[323327706,1713899438253,-244.15643341,0.00012326,2]
[323327707,1713899438263,-500.0,0.00012328,2]
[323327708,1713899438272,-500.0,0.00012328,2]
[323327709,1713899438281,-523.73285481,0.00012328,2]
[323327710,1713899438290,-500.0,0.00012328,2]
[323327711,1713899438299,-155.0,0.00012428,2]
[323327712,1713899438308,-500.0,0.00012446,2]
[323327713,1713899438317,-524.53,0.00012446,2]
[323327714,1713899438327,-500.0,0.00012446,2]
[323327715,1713899438339,-1279.11,0.00012446,2]
[323327716,1713899438349,-500.0,0.00012446,2]
[323327717,1713899438360,-500.0,0.00012446,2]
[323327718,1713899438369,-500.0,0.00012446,2]
[323327719,1713899438378,-1018.31,0.00012446,2]
[323327720,1713899438387,-500.0,0.00012446,2]
[323327722,1713899438396,-500.0,0.00012446,2]
[323327724,1713899438404,-500.0,0.00012446,2]
[323327726,1713899438413,-500.0,0.00012446,2]
[323327728,1713899438422,-880.92,0.00012446,2]
[323327730,1713899438431,-1376.54,0.00012446,2]
[323327732,1713899438441,-500.0,0.00012446,2]
[323327734,1713899438450,-584.08,0.00012446,2]
[323327736,1713899438459,-500.0,0.00012446,2]
[323327738,1713899438467,-500.0,0.00012446,2]
[323327740,1713899438477,-500.0,0.00012446,2]
[323327742,1713899438486,-500.0,0.00012446,2]
[323327744,1713899438494,-500.0,0.00012446,2]
[323327746,1713899438503,-500.0,0.00012446,2]
[323327748,1713899438512,-500.0,0.00012446,2]
[323327750,1713899438522,-500.0,0.00012446,2]
[323327752,1713899438531,-500.0,0.00012446,2]
[323327754,1713899438540,-500.0,0.00012446,2]
[323327756,1713899438548,-500.0,0.00012446,2]
[323327757,1713899438557,-500.0,0.00012446,2]
[323327759,1713899438566,-500.0,0.00012446,2]
[323327762,1713899438576,-500.0,0.00012446,2]
[323327763,1713899438587,-500.0,0.00012446,2]
[323327765,1713899438598,-1445.05,0.00012446,2]
[323327768,1713899438607,-500.0,0.00012446,2]
[323327769,1713899438617,-772.86,0.00012446,2]
[323327771,1713899438627,-532.07,0.00012446,2]
[323327773,1713899438636,-500.0,0.00012446,2]
[323327774,1713899438645,-500.0,0.00012446,2]
[323327776,1713899438654,-500.0,0.00012446,2]
[323327778,1713899438663,-962.03,0.00012446,2]
[323327779,1713899438672,-500.0,0.00012446,2]
[323327781,1713899438681,-615.81,0.00012446,2]
[323327782,1713899438690,-577.6,0.00012446,2]
[323327784,1713899438699,-500.0,0.00012446,2]
[323327786,1713899438708,-500.0,0.00012446,2]
[323327787,1713899438716,-1618.01,0.00012446,2]
[323327789,1713899438725,-500.0,0.00012446,2]
[323327790,1713899438734,-932.59,0.00012446,2]
[323327792,1713899438743,-500.0,0.00012446,2]
[323327794,1713899438752,-227.1580828,0.00012446,2]
[323327795,1713899438761,-500.0,0.00012446,2]
[323327797,1713899438770,-500.0,0.00012446,2]
[323327799,1713899438779,-500.0,0.00012446,2]
[323327800,1713899438788,-500.0,0.00012446,2]
[323327802,1713899438797,-512.67,0.00012446,2]
[323327803,1713899438806,-500.0,0.00012446,2]
[323327805,1713899438815,-500.0,0.00012446,2]
[323327807,1713899438825,-500.0,0.00012446,2]
[323327808,1713899438835,-500.0,0.00012446,2]
[323327810,1713899438844,-763.22006452,0.00012446,2]
[323327812,1713899438856,-1145.68142287,0.00012446,2]
[323327813,1713899438869,-1843.59851261,0.00012446,2]
[323327815,1713899438882,-424.65557055,0.00012446,2]
[323327817,1713899438898,-75.34442945,0.00012446,2]
[323327819,1713899438907,-500.0,0.00012446,2]
[323327821,1713899438917,-409.10536782,0.00012446,2]
[323327822,1713899438929,-6036.15,0.00012446,2]
[323327824,1713899438937,-500.0,0.00012446,2]
[323327826,1713899438947,-500.0,0.00012446,2]
[323327828,1713899438958,-500.0,0.00012446,2]
[323327829,1713899438967,-500.0,0.00012446,2]
[323327831,1713899438976,-500.0,0.00012446,2]
[323327833,1713899438985,-1367.0,0.00012602,2]
[323327834,1713899438995,-562.0,0.00012602,2]
[323327835,1713899439005,-500.0,0.00012602,2]
[323327836,1713899439014,-500.0,0.00012602,2]
[323327837,1713899439024,-500.0,0.0001272,2]
[323327838,1713899439032,-524.53,0.0001272,2]
[323327839,1713899439042,-500.0,0.0001272,2]
[323327840,1713899439052,-1279.11,0.0001272,2]
[323327841,1713899439061,-500.0,0.0001272,2]
[323327842,1713899439070,-500.0,0.0001272,2]
[323327843,1713899439080,-500.0,0.0001272,2]
[323327844,1713899439090,-1018.31,0.0001272,2]
[323327845,1713899439100,-500.0,0.0001272,2]
[323327846,1713899439109,-259.35598066,0.0001272,2]
[323327847,1713899439118,-500.0,0.0001272,2]
[323327848,1713899439128,-500.0,0.0001272,2]
[323327849,1713899439137,-880.92,0.0001272,2]
[323327850,1713899439147,-1376.54,0.0001272,2]
[323327851,1713899439156,-500.0,0.0001272,2]
[323327852,1713899439165,-584.08,0.0001272,2]
[323327853,1713899439174,-500.0,0.0001272,2]
[323327854,1713899439184,-334.4,0.0001272,2]
[323327855,1713899439194,-500.0,0.0001272,2]
[323327856,1713899439203,-500.0,0.0001272,2]
[323327857,1713899439212,-500.0,0.0001272,2]
[323327858,1713899439222,-500.0,0.0001272,2]
[323327859,1713899439231,-500.0,0.0001272,2]
[323327860,1713899439241,-500.0,0.0001272,2]
[323327861,1713899439250,-500.0,0.0001272,2]
[323327862,1713899439260,-500.0,0.0001272,2]
[323327863,1713899439270,-500.0,0.0001272,2]
[323327864,1713899439279,-500.0,0.0001272,2]
[323327865,1713899439288,-500.0,0.0001272,2]
[323327866,1713899439297,-500.0,0.0001272,2]
[323327867,1713899439306,-500.0,0.0001272,2]
[323327868,1713899439315,-1445.05,0.0001272,2]
[323327869,1713899439324,-500.0,0.0001272,2]
[323327870,1713899439335,-772.86,0.0001272,2]
[323327871,1713899439345,-532.07,0.0001272,2]
[323327872,1713899439354,-500.0,0.0001272,2]
[323327873,1713899439363,-500.0,0.0001272,2]
[323327874,1713899439374,-500.0,0.0001272,2]
[323327875,1713899439383,-962.03,0.0001272,2]
[323327876,1713899439393,-500.0,0.0001272,2]
[323327877,1713899439402,-577.6,0.0001272,2]
[323327878,1713899439411,-500.0,0.0001272,2]
[323327879,1713899439421,-500.0,0.0001272,2]
[323327880,1713899439430,-1239.33039595,0.0001272,2]
[323327881,1713899439442,-378.67960405,0.0001272,2]
[323327882,1713899439452,-470.57361646,0.0001272,2]
[323327883,1713899439463,-29.42638354,0.0001272,2]
[323327884,1713899439473,-650.05535469,0.0001272,2]
[323327885,1713899439485,-282.53464531,0.0001272,2]
[323327886,1713899439494,-500.0,0.0001272,2]
[323327887,1713899439503,-500.0,0.0001272,2]
[323327888,1713899439513,-500.0,0.0001272,2]
[323327889,1713899439522,-147.1691674,0.0001272,2]
[323327890,1713899439535,-352.8308326,0.0001272,2]
[323327891,1713899439544,-500.0,0.0001272,2]
[323327892,1713899439554,-512.67,0.0001272,2]
[323327893,1713899439564,-500.0,0.0001272,2]
[323327894,1713899439574,-500.0,0.0001272,2]
[323327895,1713899439584,-500.0,0.0001272,2]
[323327896,1713899439595,-500.0,0.0001272,2]
[323327897,1713899439604,-2217.02254876,0.0001272,2]
[323327898,1713899439615,-1535.47745124,0.0001272,2]
[323327899,1713899439624,-500.0,0.0001272,2]
[323327900,1713899439634,-500.0,0.0001272,2]
[323327901,1713899439643,-1962.04254877,0.0001272,2]
[323327902,1713899439655,-4074.10745123,0.0001272,2]
[323327903,1713899439665,-500.0,0.0001272,2]
[323327904,1713899439674,-500.0,0.0001272,2]
[323327905,1713899439684,-500.0,0.0001272,2]
[323327906,1713899439693,-420.22362877,0.0001272,2]
[323327907,1713899439853,-79.77637123,0.0001272,2]
[323327908,1713899439863,-500.0,0.0001272,2]
[323327909,1713899439874,-2272.3171346,0.00012796,2]
[323327910,1713899439887,-1276.73780675,0.00012796,2]
[323327911,1713899439898,-2900.46535567,0.00012796,2]
[323327912,1713899439908,-6449.52029691,0.00012805,2]
[323327913,1713899439917,-3994.59217142,0.00012815,2]
[323327914,1713899439928,-2454.92812549,0.00012815,2]
[323327915,1713899439938,-6449.52029691,0.00012824,2]
[323327916,1713899439948,-6449.52029691,0.00012834,2]
[323327917,1713899439958,-3224.00570952,0.00012843,2]
[323327922,1713899440108,-3225.51458739,0.00012843,2]
[323327923,1713899440117,-4595.50111743,0.00012853,2]
[323327924,1713899440129,-597.75696942,0.00012853,2]
[323327925,1713899440186,-607.21348402,0.00012853,2]
[323327926,1713899440205,-649.04872604,0.00012853,2]
[323327927,1713899440214,-2402.76268071,0.00012862,2]
[323327928,1713899440225,-531.14237959,0.00012862,2]
[323327929,1713899440237,-349.62275878,0.00012862,2]
[323327930,1713899440274,-451.76570085,0.00012862,2]
[323327931,1713899440286,-2714.22677698,0.00012862,2]
[323327932,1713899440296,-311.45276,0.0001287,2]
[323327933,1713899440305,-6449.52029691,0.00012872,2]
[323327934,1713899440315,-530.27735349,0.00012876,2]
[323327935,1713899440324,-4514.85799646,0.00012878,2]
[323327936,1713899440334,-3080.15233842,0.00012878,2]
[323327937,1713899440343,-1993.92102893,0.00012878,2]
[323327938,1713899440352,-967.19043138,0.00012879,2]
[323327939,1713899440361,-192.56707976,0.00012879,2]
[323327940,1713899440371,-2000.0,0.00012879,2]
[323327941,1713899440380,-2000.0,0.00012879,2]
[323327942,1713899440390,-2000.0,0.00012879,2]
[323327943,1713899440399,-2000.0,0.00012879,2]
[323327944,1713899440409,-2000.0,0.00012879,2]
[323327945,1713899440418,-2000.0,0.00012879,2]
[323327946,1713899440428,-451.63396767,0.00012879,2]
[323327947,1713899440439,-771.54419565,0.00012879,2]
[323327948,1713899440452,-425.6559996,0.00012879,2]
[323327949,1713899440470,-351.16583708,0.00012879,2]
[323327950,1713899440480,-2000.0,0.00012879,2]
[323327951,1713899440489,-1965.42605602,0.00012879,2]
[323327952,1713899440500,-34.57394398,0.00012879,2]
[323327953,1713899440509,-230.55465602,0.00012879,2]
[323327963,1713899443129,-500.0,0.00011898,2]
[323327965,1713899443139,-500.0,0.00012172,2]
[323327967,1713899443148,-500.0,0.00012446,2]
[323327969,1713899443157,-500.0,0.0001272,2]
[323327971,1713899443166,-255.72296,0.00012879,2]
[323327973,1713899443177,-1513.72238398,0.00012879,2]
[323327975,1713899443186,-1459.46182444,0.00012879,2]
[323327979,1713899443213,-540.53817556,0.00012879,2]
[323327980,1713899443221,-1454.91150365,0.00012879,2]
[323327981,1713899443340,-545.08849635,0.00012879,2]
[323327982,1713899443349,-2000.0,0.00012879,2]
[323327983,1713899443358,-921.28033086,0.00012879,2]
[323327984,1713899443369,-464.03,0.00012879,2]
[323327985,1713899443380,-257.6113327,0.00012879,2]
[323327986,1713899443425,-357.07833644,0.00012879,2]
[323327987,1713899443434,-124.13626356,0.00012879,2]
[323327988,1713899443445,-987.596933,0.00012879,2]
[323327992,1713899443701,-888.26680344,0.00012879,2]
[323327993,1713899443711,-2000.0,0.00012879,2]
[323327994,1713899443720,-576.8926891,0.00012879,2]
[323327995,1713899443730,-12016.58,0.0001288,2]
[323327997,1713899443740,-58556.61516451,0.0001288,2]
[323328029,1713899447222,-1000.0,0.00011799,2]
[323328032,1713899447231,-500.0,0.00011898,2]
[323328033,1713899447240,-500.0,0.00011898,2]
[323328035,1713899447250,-500.0,0.00012172,2]
[323328037,1713899447258,-500.0,0.00012172,2]
[323328038,1713899447268,-500.0,0.00012446,2]
[323328039,1713899447276,-500.0,0.00012446,2]
[323328040,1713899447286,-500.0,0.0001272,2]
[323328041,1713899447295,-500.0,0.0001272,2]
[323328042,1713899447305,-524.96673129,0.00012878,2]
[323328043,1713899447314,-10304.40309474,0.0001288,2]
[323328049,1713899680277,963.12,9.942e-05,2]
[323328051,1713899824100,-711.19640812,0.00015,14]
[323328052,1713899856842,-3640.33199998,0.00015,10]
[323328055,1713899896704,-500.255265,0.00017889,10]
[323328056,1713899922282,-168.0,0.0001958,15]
[323328057,1713899922303,-150.5,0.0001959,15]
[323328058,1713899922325,-94829.7163269,0.000199,15]
[323328060,1713900087540,-2215.58871853,0.00011474,2]
[323328061,1713900087563,-539.29391901,0.00011475,2]
[323328062,1713900087586,-155.0,0.00011475,5]
[323328063,1713900087608,-90.11736246,0.00011476,2]
[323328064,1713900088640,-1694.15755436,0.00011476,2]
[323328065,1713900088661,-414.3135268,0.00011476,2]
[323328066,1713900088683,-159.35735997,0.0001148,2]
[323328067,1713900088708,-180.44,0.00011533,2]
[323328068,1713900088729,-186.91,0.00011566,2]
[323328069,1713900088750,-328.0,0.00011583,2]
[323328070,1713900088770,-36.82155887,0.00011583,2]
[323328071,1713900089177,-113.17844113,0.00011583,2]
[323328072,1713900089198,-2886.82155887,0.00011584,7]
[323328073,1713900099434,-3000.0,0.00011584,7]
[323328074,1713900115099,-4000.0,0.00011584,7]
[323328075,1713900116024,-149.42335659,0.00011584,7]
[323328076,1713900234354,3850.57664341,0.00011483,2]
[323328077,1713900308567,962.43,9.699e-05,2]
[323328083,1713900571002,11296.9282556,0.00019,30]
[323328088,1713900632264,-155.0,0.0001148,5]
[323328089,1713900632274,-185.13558781,0.00011481,2]
[323328090,1713900632286,-1598.31041267,0.00011481,2]
[323328091,1713900632295,-1528.40335659,0.00011483,2]
[323328092,1713900632305,-172.31,0.00011581,2]
[323328093,1713900632315,-700.97623074,0.00011586,3]
[323328094,1713900632342,-1299.02376926,0.00011586,3]
[323328095,1713900632352,-150.0,0.00011586,2]
[323328096,1713900632361,-1620.73643074,0.00011596,2]
[323328098,1713900632599,-1709.51356926,0.00011596,2]
[323328100,1713900632608,-931.02,0.0001161,2]
[323328102,1713900632617,-160.0,0.00011645,2]
[323328104,1713900632627,-250.0,0.00011672,2]
[323328106,1713900632636,-1179.58,0.00011697,2]
[323328107,1713900632646,-499.99,0.00011697,2]
[323328108,1713900632657,-4789.46,0.00011729,2]
[323328109,1713900632667,-500.0,0.00011896,2]
[323328110,1713900632677,-500.0,0.00011896,2]
[323328111,1713900632688,-500.0,0.00011896,2]
[323328112,1713900632698,-500.0,0.00011896,2]
[323328113,1713900632708,-413.41979074,0.00011896,2]
[323328120,1713900640292,-86.58020926,0.00011896,2]
[323328121,1713900640301,-500.0,0.00011896,2]
[323328122,1713900640311,-500.0,0.00011896,2]
[323328123,1713900640320,-556.68,0.00011896,2]
[323328124,1713900640329,-500.0,0.00011896,2]
[323328125,1713900640339,-500.0,0.00011896,2]
[323328126,1713900640350,-500.0,0.00011896,2]
[323328127,1713900640359,-500.0,0.00011896,2]
[323328128,1713900640370,-500.0,0.00011896,2]
[323328129,1713900640379,-500.0,0.00011896,2]
[323328130,1713900640388,-541.71,0.00011896,2]
[323328131,1713900640398,-500.0,0.00011896,2]
[323328132,1713900640407,-500.0,0.00011896,2]
[323328133,1713900640417,-500.0,0.00011896,2]
[323328134,1713900640426,-500.0,0.00011896,2]
[323328135,1713900640436,-500.0,0.00011896,2]
[323328136,1713900640445,-500.0,0.00011896,2]
[323328137,1713900640456,-500.0,0.00011896,2]
[323328138,1713900640466,-532.44,0.00011896,2]
[323328139,1713900640476,-500.0,0.00011896,2]
[323328140,1713900640485,-500.0,0.00011896,2]
[323328141,1713900640494,-500.0,0.00011896,2]
[323328142,1713900640503,-500.0,0.00011896,2]
[323328143,1713900640512,-500.0,0.00011896,2]
[323328144,1713900640521,-500.0,0.00011896,2]
[323328145,1713900640531,-500.0,0.00011896,2]
[323328146,1713900640540,-500.0,0.00011896,2]
[323328147,1713900640550,-500.0,0.00011896,2]
[323328148,1713900640559,-500.0,0.00011896,2]
[323328149,1713900640568,-500.0,0.00011896,2]
[323328150,1713900640578,-500.0,0.00011896,2]
[323328151,1713900640587,-500.0,0.00011896,2]
[323328152,1713900640596,-500.0,0.00011896,2]
[323328153,1713900640606,-500.76115315,0.00011896,2]